bitfinex/quotes_BTCUSD_20240730
["timestamp","ask_amount","ask_price","bid_price","bid_amount"]
[1722303387368,0.240089,66642.0,66631.0,0.0655]
[1722303387569,0.240074,66646.0,66631.0,0.0655]
[1722303387570,0.240095,66641.0,66631.0,0.08441908]
[1722303387913,0.240074,66646.0,66631.0,0.08441908]
[1722303388147,0.240085,66643.0,66635.0,0.120056]
[1722303388356,0.0715374,66645.0,66632.0,0.08]
[1722303388357,0.240089,66642.0,66632.0,0.08]
[1722303388564,0.120046,66641.0,66634.0,0.120057]
[1722303388750,0.120046,66641.0,66632.0,0.320122]
[1722303388751,0.360181,66633.0,66632.0,0.08]
[1722303388951,0.600302,66633.0,66632.0,0.08]
[1722303389107,0.360181,66633.0,66632.0,0.08]
[1722303389310,0.6363201,66633.0,66632.0,0.08]
[1722303389857,0.360181,66633.0,66632.0,0.08]
[1722303390069,0.12006,66633.0,66632.0,0.08]
[1722303390223,0.360181,66633.0,66632.0,0.08]
[1722303391178,0.600302,66633.0,66632.0,0.08]
[1722303391295,0.840423,66633.0,66632.0,0.08]
[1722303391492,0.9244653,66633.0,66632.0,0.08]
[1722303391984,0.9474653,66633.0,66632.0,0.08]
[1722303392363,0.9474653,66633.0,66626.0,0.0655]
[1722303392364,0.360213,66627.0,66626.0,0.1455]
[1722303392560,0.023,66632.0,66626.0,0.1455]
[1722303392765,0.120066,66630.0,66626.0,0.1455]
[1722303393068,0.120068,66629.0,66626.0,0.1455]
[1722303393469,0.240128,66631.0,66626.0,0.1455]
[1722303393470,0.120069,66628.0,66626.0,0.1455]
[1722303394309,0.120069,66628.0,66626.0,0.1485]
[1722303394310,0.01011152,66627.0,66626.0,0.1485]
[1722303394507,0.13018252,66627.0,66626.0,0.1455]
[1722303394707,0.13018252,66627.0,66619.0,0.240169]
[1722303394708,0.120085,66619.0,66618.0,0.1487]
[1722303394932,0.360256,66619.0,66618.0,0.1487]
[1722303395140,0.37074699,66619.0,66618.0,0.1487]
[1722303395628,0.03403675,66619.0,66618.0,0.1487]
[1722303395976,0.37074699,66619.0,66618.0,0.1487]
[1722303397164,0.01049099,66619.0,66618.0,0.1487]
[1722303397390,0.1,66628.0,66618.0,0.1487]
[1722303397589,0.240148,66626.0,66618.0,0.1487]
[1722303397793,0.1,66625.0,66618.0,0.1487]
[1722303398033,0.120084,66620.0,66618.0,0.1487]
[1722303398235,0.01049099,66624.0,66618.0,0.1487]
[1722303398236,0.600427,66619.0,66618.0,0.1487]
[1722303398586,0.61091799,66619.0,66618.0,0.1487]
[1722303398789,0.37074699,66619.0,66618.0,0.1487]
[1722303398988,0.39429346,66619.0,66618.0,0.1487]
[1722303399390,0.37074699,66619.0,66618.0,0.1487]
[1722303399835,0.37074699,66619.0,66618.0,0.16761908]
[1722303400072,0.37074699,66619.0,66618.0,0.1487]
[1722303401370,0.01049099,66619.0,66618.0,0.268787]
[1722303401579,0.00083,66627.0,66618.0,0.268787]
[1722303401580,0.120076,66625.0,66618.0,0.268787]
[1722303401805,0.01041727,66624.0,66619.0,0.120085]
[1722303402008,0.00083,66627.0,66623.0,0.120078]
[1722303402141,0.01041727,66626.0,66621.0,0.12008]
[1722303402342,0.01041727,66626.0,66620.0,0.15063304]
[1722303402343,0.120077,66624.0,66620.0,0.15063304]
[1722303402749,0.02354381,66625.0,66598.0,0.1578]
[1722303402750,0.01041727,66623.0,66598.0,0.1578]
[1722303402956,0.01041727,66623.0,66580.0,0.04471062]
[1722303402957,0.01041727,66623.0,66604.0,0.120112]
[1722303402958,0.07534716,66605.0,66604.0,0.120112]
[1722303403158,0.2131,66605.0,66604.0,0.51097004]
[1722303403341,0.22351727,66605.0,66604.0,0.75119504]
[1722303403538,0.26825262,66605.0,66604.0,0.80743238]
[1722303403743,0.22351727,66605.0,66604.0,0.80743238]
[1722303404790,0.22351727,66605.0,66594.0,0.394]
[1722303404791,0.01,66604.0,66594.0,0.394]
[1722303405044,0.01,66604.0,66569.0,0.1]
[1722303405045,0.01,66592.0,66569.0,0.1]
[1722303405361,0.07534716,66576.0,66575.0,0.360495]
[1722303405911,0.07534716,66576.0,66575.0,0.506495]
[1722303406115,0.08558911,66576.0,66575.0,0.506495]
[1722303406531,0.14798878,66576.0,66575.0,0.506495]
[1722303406724,0.14898878,66576.0,66575.0,0.518495]
[1722303406924,0.17154413,66576.0,66575.0,0.506495]
[1722303407342,0.17254413,66576.0,66575.0,0.518495]
[1722303407521,0.11014446,66576.0,66575.0,0.518495]
[1722303408318,0.11014446,66576.0,66575.0,0.758825]
[1722303408490,0.11014446,66576.0,66575.0,0.89745804]
[1722303408723,0.09890251,66576.0,66575.0,0.89745804]
[1722303408910,0.09990251,66576.0,66575.0,0.90945804]
[1722303409068,0.07634716,66576.0,66575.0,0.90945804]
[1722303411797,0.07634716,66576.0,66575.0,0.30863304]
[1722303412067,0.07634716,66576.0,66575.0,0.158]
[1722303412199,0.2589126,66576.0,66575.0,0.158]
[1722303412546,0.20249073,66576.0,66575.0,0.07243526]
[1722303412682,0.39127332,66576.0,66575.0,0.07243526]
[1722303412906,0.14164249,66576.0,66575.0,0.07243526]
[1722303413090,0.13908829,66576.0,66575.0,0.06043526]
[1722303413335,0.31166266,66576.0,66575.0,0.06043526]
[1722303413536,0.56498866,66576.0,66575.0,0.07243526]
[1722303413754,1.13864028,66576.0,66575.0,0.012]
[1722303413957,1.13864028,66576.0,66540.0,0.03003]
[1722303413958,0.01,66562.0,66540.0,0.03003]
[1722303414184,0.07534716,66545.0,66544.0,0.360663]
[1722303414507,0.07534716,66552.0,66551.0,0.120208]
[1722303414668,0.07534716,66552.0,66551.0,0.51125804]
[1722303414870,0.08545009,66552.0,66551.0,0.15063304]
[1722303415098,0.07534716,66552.0,66551.0,0.15063304]
[1722303415399,0.01,66547.0,66541.0,0.1415]
[1722303415643,0.07534716,66542.0,66541.0,0.1415]
[1722303415851,0.07534716,66542.0,66541.0,0.261725]
[1722303416059,0.07534716,66542.0,66541.0,0.502178]
[1722303416271,0.08508104,66542.0,66541.0,0.502178]
[1722303416472,0.07534716,66542.0,66541.0,0.742631]
[1722303416600,0.08508104,66542.0,66541.0,0.89326404]
[1722303417023,0.07634716,66542.0,66541.0,0.89526404]
[1722303417236,0.09991543,66542.0,66541.0,0.89526404]
[1722303417477,0.09991543,66542.0,66541.0,1.13571704]
[1722303417844,0.09991543,66542.0,66541.0,1.13371704]
[1722303417845,0.07534716,66542.0,66541.0,1.13371704]
[1722303418051,0.07634716,66542.0,66541.0,1.13371704]
[1722303419278,0.07534716,66552.0,66541.0,0.54888604]
[1722303419466,0.07534716,66552.0,66551.0,0.985559]
[1722303419640,0.07534716,66552.0,66551.0,1.13619204]
[1722303419845,0.07534716,66552.0,66551.0,1.53440904]
[1722303420046,0.07534716,66559.0,66558.0,0.600977]
[1722303420410,0.07534716,66559.0,66558.0,1.29600104]
[1722303420619,0.07534716,66559.0,66558.0,1.53639204]
[1722303420949,0.07534716,66559.0,66558.0,1.29600104]
[1722303420950,0.09890698,66559.0,66558.0,1.29600104]
[1722303421379,0.09890698,66559.0,66558.0,1.13820104]
[1722303421534,0.09890698,66559.0,66558.0,0.89781004]
[1722303422154,0.07534716,66559.0,66558.0,0.89781004]
[1722303422741,0.07534716,66559.0,66558.0,0.65741904]
[1722303423353,0.07534716,66559.0,66558.0,0.0824]
[1722303423762,0.01,66555.0,66551.0,0.0775]
[1722303423981,0.07534716,66552.0,66551.0,0.197708]
[1722303424187,0.02,66538.0,66537.0,0.009306]
[1722303424401,0.09534716,66538.0,66537.0,0.009306]
[1722303424634,0.08507052,66538.0,66537.0,0.610473]
[1722303424800,0.08507052,66538.0,66537.0,0.52063904]
[1722303425000,0.07534716,66538.0,66537.0,0.76110604]
[1722303425202,0.07534716,66538.0,66537.0,1.06397304]
[1722303425402,0.09991685,66538.0,66537.0,1.14947304]
[1722303425624,0.09991685,66538.0,66537.0,1.14147304]
[1722303425625,0.09891685,66538.0,66537.0,1.14147304]
[1722303430879,0.09891685,66538.0,66537.0,1.53974004]
[1722303430880,0.02356969,66538.0,66537.0,1.53974004]
[1722303431007,0.07534716,66545.0,66544.0,1.076947]
[1722303431215,0.44444115,66557.0,66556.0,0.277999]
[1722303431423,0.44444115,66575.0,66558.0,0.999168]
[1722303431622,0.44444115,66575.0,66574.0,0.360501]
[1722303431804,0.44444115,66575.0,66574.0,0.600835]
[1722303432005,0.07534716,66576.0,66575.0,0.360495]
[1722303432209,0.07534716,66576.0,66575.0,0.600825]
[1722303432610,0.07534716,66576.0,66575.0,0.75145804]
[1722303433258,0.08534716,66576.0,66575.0,0.15063304]
[1722303433573,0.08534716,66576.0,66565.0,0.1377]
[1722303433574,0.03,66574.0,66565.0,0.1377]
[1722303433931,0.01,66574.0,66573.0,0.360505]
[1722303434253,0.01,66568.0,66567.0,0.240357]
[1722303434463,0.01,66564.0,66560.0,0.120191]
[1722303434663,0.01,66570.0,66569.0,0.120176]
[1722303435016,0.07534716,66576.0,66575.0,0.24033]
[1722303435202,0.13775143,66576.0,66575.0,0.600825]
[1722303435632,0.07534716,66576.0,66575.0,0.75145804]
[1722303435840,0.07534716,66576.0,66575.0,1.13518804]
[1722303435841,0.13775075,66576.0,66575.0,1.13518804]
[1722303436033,0.07534716,66576.0,66575.0,1.13518804]
[1722303436246,0.07534716,66576.0,66575.0,0.82905804]
[1722303437467,0.07534716,66576.0,66575.0,1.06938804]
[1722303438848,0.09890276,66576.0,66575.0,1.06938804]
[1722303439290,0.09890276,66576.0,66575.0,1.08338804]
[1722303439493,0.09990276,66576.0,66575.0,1.08338804]
[1722303440073,0.07634716,66576.0,66575.0,1.08338804]
[1722303442006,0.07634716,66576.0,66575.0,1.24118804]
[1722303443233,0.09990257,66576.0,66575.0,1.24118804]
[1722303443390,0.09990257,66576.0,66575.0,1.40488804]
[1722303443592,0.09990257,66576.0,66575.0,0.84305804]
[1722303444628,0.09990257,66576.0,66575.0,0.52512804]
[1722303444834,0.10978054,66576.0,66575.0,0.52512804]
[1722303445251,0.10978054,66576.0,66575.0,0.76545804]
[1722303445454,0.09990257,66576.0,66575.0,0.52512804]
[1722303445700,0.10978054,66576.0,66575.0,0.52512804]
[1722303445902,0.10978054,66576.0,66575.0,0.76545804]
[1722303446057,0.10978054,66576.0,66575.0,0.52512804]
[1722303447055,0.10978054,66576.0,66575.0,0.76545804]
[1722303447482,0.09990257,66576.0,66575.0,0.76545804]
[1722303448132,0.19540257,66576.0,66575.0,0.014]
[1722303448260,0.52861256,66576.0,66575.0,0.014]
[1722303448460,0.01,66564.0,66558.0,0.241315]
[1722303448661,0.01,66564.0,66558.0,0.601901]
[1722303448662,0.07534716,66559.0,66558.0,0.601901]
[1722303448866,0.07534716,66559.0,66558.0,0.36151]
[1722303449498,0.08527204,66559.0,66558.0,0.36151]
[1722303449696,0.08527204,66559.0,66558.0,0.121119]
[1722303449893,0.12995526,66559.0,66558.0,0.121119]
[1722303450094,0.08527204,66559.0,66558.0,0.36151]
[1722303450653,0.08527204,66559.0,66558.0,0.75253404]
[1722303450799,0.08527204,66559.0,66558.0,0.99292504]
[1722303451004,0.07534716,66559.0,66558.0,0.99292504]
[1722303452116,0.04469776,66566.0,66560.0,0.398184]
[1722303452318,0.07534716,66567.0,66566.0,0.360543]
[1722303452522,0.07534716,66567.0,66566.0,0.99190004]
[1722303456375,0.09890666,66567.0,66566.0,0.99190004]
[1722303456733,0.09890666,66567.0,66566.0,1.23226204]
[1722303457353,0.09890666,66567.0,66566.0,0.99490004]
[1722303457565,0.07534716,66567.0,66566.0,0.99490004]
[1722303457788,0.07534716,66567.0,66566.0,0.99190004]
[1722303457955,0.07534716,66567.0,66566.0,0.128181]
[1722303457956,0.14875422,66567.0,66566.0,0.128181]
[1722303458171,0.14884945,66567.0,66566.0,0.368543]
[1722303458405,0.22491856,66567.0,66566.0,0.120181]
[1722303458723,0.22491856,66567.0,66566.0,0.368543]
[1722303458724,0.22590664,66567.0,66566.0,0.368543]
[1722303458996,0.22590664,66567.0,66566.0,0.360543]
[1722303460383,0.22890664,66567.0,66566.0,0.120181]
[1722303460549,0.15784945,66567.0,66566.0,0.120181]
[1722303460777,0.21491161,66567.0,66566.0,0.360543]
[1722303460931,0.18241623,66567.0,66566.0,0.360543]
[1722303461676,0.18141623,66567.0,66566.0,0.360543]
[1722303462296,0.17141623,66567.0,66566.0,0.99190004]
[1722303462444,0.17241623,66567.0,66566.0,0.99190004]
[1722303462646,0.17241623,66567.0,66558.0,0.01008175]
[1722303462647,0.01,66565.0,66558.0,0.01008175]
[1722303462874,0.07534716,66559.0,66558.0,0.37066775]
[1722303463074,0.07534716,66559.0,66558.0,0.95143724]
[1722303463406,0.09990819,66567.0,66566.0,0.360543]
[1722303463407,0.07634716,66567.0,66566.0,0.360543]
[1722303463545,0.13875087,66567.0,66566.0,0.600905]
[1722303463754,0.08637836,66567.0,66566.0,0.600905]
[1722303463930,0.17234259,66567.0,66566.0,0.841267]
[1722303464139,0.09890743,66567.0,66566.0,0.841267]
[1722303464341,0.09890743,66567.0,66566.0,0.99190004]
[1722303464588,0.09890743,66567.0,66566.0,0.75353804]
[1722303464895,0.09890743,66567.0,66566.0,0.99190004]
[1722303465072,0.09990743,66567.0,66566.0,0.99890004]
[1722303465453,0.09890743,66567.0,66566.0,0.99190004]
[1722303465653,0.09990743,66567.0,66566.0,0.99990004]
[1722303465857,0.09990743,66567.0,66566.0,1.08070004]
[1722303466063,0.07534716,66567.0,66566.0,1.17213841]
[1722303466760,0.07534716,66567.0,66566.0,1.07270004]
[1722303467497,0.07534716,66567.0,66566.0,1.16211873]
[1722303467638,0.07534716,66567.0,66566.0,1.07362404]
[1722303467843,0.14714716,66567.0,66566.0,0.000924]
[1722303468067,0.21960898,66567.0,66566.0,0.121105]
[1722303468280,0.21960898,66567.0,66566.0,0.361467]
[1722303468481,0.26632749,66567.0,66566.0,0.361467]
[1722303468678,0.26432749,66567.0,66566.0,0.601829]
[1722303468879,0.26432749,66567.0,66566.0,0.361467]
[1722303469338,0.24317002,66567.0,66566.0,0.121105]
[1722303469682,0.24317002,66567.0,66566.0,0.361467]
[1722303469901,0.24417002,66567.0,66566.0,0.369467]
[1722303470269,0.24417501,66567.0,66566.0,0.129105]
[1722303470456,0.22061397,66567.0,66566.0,0.129105]
[1722303470648,0.22061397,66567.0,66566.0,0.361467]
[1722303470649,0.21961397,66567.0,66566.0,0.361467]
[1722303471459,0.28669272,66567.0,66566.0,0.361467]
[1722303471596,0.2867403,66567.0,66566.0,0.361467]
[1722303472412,0.21961397,66567.0,66566.0,0.361467]
[1722303472652,0.2767507,66567.0,66566.0,0.361467]
[1722303472809,0.2767507,66567.0,66566.0,0.601829]
[1722303473019,0.27893192,66567.0,66566.0,0.601829]
[1722303473235,0.17176462,66567.0,66566.0,0.601829]
[1722303473630,0.23417238,66567.0,66566.0,0.601829]
[1722303473832,0.23317238,66567.0,66566.0,0.601829]
[1722303474250,0.23417238,66567.0,66566.0,0.601829]
[1722303474451,0.23317238,66567.0,66566.0,0.601829]
[1722303474689,0.20609434,66567.0,66566.0,0.99282404]
[1722303474837,0.21610069,66567.0,66566.0,0.99482404]
[1722303475480,0.17132187,66567.0,66566.0,0.99482404]
[1722303476108,0.17132187,66567.0,66566.0,0.99282404]
[1722303476669,0.16131552,66567.0,66566.0,1.08248671]
[1722303476874,0.1730124,66567.0,66566.0,1.08248671]
[1722303477484,0.1730124,66567.0,66566.0,1.08653661]
[1722303477684,0.1730124,66567.0,66566.0,0.99282404]
[1722303478108,0.11060464,66567.0,66566.0,0.99282404]
[1722303478453,0.2402318,66567.0,66566.0,0.75246204]
[1722303478650,0.2402318,66567.0,66566.0,0.121105]
[1722303478651,0.36473376,66567.0,66566.0,0.121105]
[1722303478879,0.71007946,66567.0,66566.0,0.361467]
[1722303479013,0.82211684,66567.0,66566.0,0.361467]
[1722303479211,0.82211684,66567.0,66566.0,0.000924]
[1722303479212,0.91255846,66567.0,66566.0,0.000924]
[1722303479614,1.62861707,66567.0,66566.0,0.000924]
[1722303479819,0.1727,66559.0,66558.0,0.000924]
[1722303480074,0.40628276,66559.0,66558.0,0.000924]
[1722303480375,0.81579831,66559.0,66558.0,0.000924]
[1722303480613,0.69560431,66559.0,66558.0,0.000924]
[1722303480796,1.97049685,66559.0,66558.0,0.000924]
[1722303480940,1.97049685,66559.0,66528.0,0.240497]
[1722303480941,0.021,66538.0,66528.0,0.240497]
[1722303481145,0.021,66538.0,66532.0,0.240482]
[1722303481146,0.23712629,66538.0,66532.0,0.240482]
[1722303481370,0.69343588,66538.0,66532.0,0.240482]
[1722303481733,0.3600435,66538.0,66534.0,0.120239]
[1722303481934,0.61597352,66538.0,66534.0,0.120239]
[1722303482130,0.78028829,66538.0,66534.0,0.120239]
[1722303482330,0.78028829,66538.0,66524.0,0.240511]
[1722303482331,0.6804151,66538.0,66524.0,0.240511]
[1722303482598,0.6804151,66538.0,66527.0,0.2405]
[1722303482837,0.6804151,66538.0,66532.0,0.120241]
[1722303483077,0.6804151,66538.0,66521.0,0.01127214]
[1722303483078,0.77141057,66538.0,66537.0,0.129539]
[1722303483240,0.62158751,66538.0,66537.0,0.009306]
[1722303483463,0.28811335,66538.0,66537.0,0.009306]
[1722303483627,0.61358903,66538.0,66537.0,0.009306]
[1722303483831,0.62358903,66538.0,66537.0,0.009306]
[1722303484234,0.60001662,66538.0,66537.0,0.009306]
[1722303484505,0.26654094,66538.0,66537.0,0.009306]
[1722303484715,0.25654094,66538.0,66537.0,0.009306]
[1722303484910,0.53758863,66538.0,66537.0,0.009306]
[1722303485373,0.60002615,66538.0,66537.0,0.009306]
[1722303485573,0.53759164,66538.0,66537.0,0.009306]
[1722303485801,0.60003664,66538.0,66537.0,0.009306]
[1722303485956,0.6753838,66538.0,66537.0,0.009306]
[1722303486154,0.6653838,66538.0,66537.0,0.009306]
[1722303486563,0.23362061,66538.0,66537.0,0.009306]
[1722303486758,0.24362061,66538.0,66537.0,0.009306]
[1722303487164,0.17117561,66538.0,66537.0,0.009306]
[1722303487359,0.36385302,66538.0,66537.0,0.009306]
[1722303487561,0.96139324,66538.0,66537.0,0.009306]
[1722303487724,1.02702866,66538.0,66537.0,0.009306]
[1722303488208,0.63491047,66538.0,66537.0,0.009306]
[1722303488382,0.96456228,66538.0,66537.0,0.009306]
[1722303488562,0.94682145,66538.0,66537.0,0.010306]
[1722303488764,0.3104922,66538.0,66537.0,0.009306]
[1722303489144,0.3214922,66538.0,66537.0,0.010306]
[1722303489343,0.3214922,66538.0,66537.0,0.009306]
[1722303489689,0.26362259,66538.0,66537.0,0.010306]
[1722303489888,0.25262259,66538.0,66537.0,0.009306]
[1722303490289,0.26362259,66538.0,66537.0,0.010306]
[1722303491156,0.28719561,66538.0,66537.0,0.010306]
[1722303491300,0.11754845,66538.0,66537.0,0.76210604]
[1722303491501,0.11754845,66538.0,66537.0,1.00257304]
[1722303491750,0.05510147,66538.0,66537.0,1.00257304]
[1722303491973,0.02,66538.0,66537.0,1.00257304]
[1722303492756,0.07534716,66545.0,66544.0,0.601105]
[1722303492898,0.07534716,66545.0,66544.0,0.75173804]
[1722303493122,0.08534716,66545.0,66544.0,0.51129604]
[1722303493301,0.08534716,66545.0,66544.0,0.27085404]
[1722303493518,0.08653633,66545.0,66544.0,0.51129604]
[1722303493919,0.09653633,66545.0,66544.0,0.51129604]
[1722303494173,0.11653633,66545.0,66544.0,0.120221]
[1722303494391,0.10653633,66545.0,66544.0,0.120221]
[1722303494580,0.11653633,66545.0,66544.0,0.120221]
[1722303494784,0.03,66544.0,66543.0,0.120223]
[1722303495191,0.02,66544.0,66543.0,0.360669]
[1722303495388,0.03,66544.0,66543.0,0.360669]
[1722303495543,0.03,66544.0,66543.0,0.120223]
[1722303495744,0.04118917,66544.0,66543.0,0.120223]
[1722303495959,0.04118917,66544.0,66543.0,0.360669]
[1722303496359,0.04118917,66544.0,66543.0,0.120223]
[1722303496754,0.10362231,66544.0,66543.0,0.120223]
[1722303497031,0.10362231,66544.0,66543.0,0.360669]
[1722303497349,0.03118917,66544.0,66542.0,0.120224]
[1722303497567,0.01,66543.0,66541.0,0.240453]
[1722303497793,0.04118917,66544.0,66542.0,0.120224]
[1722303498005,0.01,66543.0,66542.0,0.120224]
[1722303498144,0.07243636,66543.0,66542.0,0.120224]
[1722303498344,0.06243636,66543.0,66542.0,0.120224]
[1722303498557,0.07243636,66543.0,66542.0,0.120224]
[1722303498963,0.06243636,66543.0,66542.0,0.120224]
[1722303499206,0.08369386,66543.0,66542.0,0.120224]
[1722303499558,0.01,66539.0,66538.0,0.120231]
[1722303499778,0.012,66538.0,66537.0,0.370006]
[1722303499955,0.08534716,66538.0,66537.0,0.370006]
[1722303500098,0.08734716,66538.0,66537.0,0.370006]
[1722303500297,0.10660062,66538.0,66537.0,0.009306]
[1722303500754,0.11660062,66538.0,66537.0,0.009306]
[1722303500931,0.11660062,66538.0,66537.0,0.129539]
[1722303502252,0.10660062,66538.0,66537.0,0.129539]
[1722303502449,0.11660062,66538.0,66537.0,0.129539]
[1722303502649,0.11660062,66538.0,66537.0,0.370006]
[1722303503091,0.12891861,66538.0,66537.0,0.370006]
[1722303503408,0.1301454,66538.0,66537.0,0.129539]
[1722303503627,0.20258354,66538.0,66537.0,0.370006]
[1722303503823,0.1401454,66538.0,66537.0,0.370006]
[1722303504245,0.1411454,66538.0,66537.0,0.377006]
[1722303504445,0.11757395,66538.0,66537.0,0.377006]
[1722303504647,0.18001177,66538.0,66537.0,0.377006]
[1722303504916,0.18001177,66538.0,66537.0,0.016306]
[1722303505122,0.17001177,66538.0,66537.0,0.016306]
[1722303505320,0.18201177,66538.0,66537.0,0.016306]
[1722303505648,0.17001177,66538.0,66537.0,0.016306]
[1722303505903,0.18201177,66538.0,66537.0,0.016306]
[1722303506422,0.18001177,66538.0,66537.0,0.016306]
[1722303506809,0.24841177,66538.0,66537.0,0.016306]
[1722303507015,0.32521177,66538.0,66537.0,0.016306]
[1722303507613,0.33762059,66538.0,66537.0,0.016306]
[1722303508043,0.40006429,66538.0,66537.0,0.016306]
[1722303508204,0.39006429,66538.0,66537.0,0.016306]
[1722303508406,0.40006429,66538.0,66537.0,0.016306]
[1722303508826,0.44466066,66538.0,66537.0,0.016306]
[1722303509225,0.19242059,66538.0,66537.0,0.016306]
[1722303509492,0.27946452,66538.0,66537.0,0.377006]
[1722303509693,0.22486154,66538.0,66537.0,0.617473]
[1722303509892,0.1600149,66538.0,66537.0,0.617473]
[1722303510102,0.1500149,66538.0,66537.0,0.617473]
[1722303510297,0.09757395,66538.0,66537.0,0.617473]
[1722303510520,0.16001023,66538.0,66537.0,0.617473]
[1722303510723,0.13878344,66538.0,66537.0,0.617473]
[1722303510928,0.15993413,66538.0,66537.0,0.617473]
[1722303511139,0.15993413,66538.0,66537.0,0.377006]
[1722303511425,0.15993413,66538.0,66537.0,0.52763904]
[1722303511766,0.14878344,66538.0,66537.0,0.76810604]
[1722303511967,0.17235508,66538.0,66537.0,0.76810604]
[1722303512162,0.17235508,66538.0,66537.0,0.52763904]
[1722303512163,0.18350577,66538.0,66537.0,0.52763904]
[1722303513492,0.09749785,66538.0,66537.0,0.76810604]
[1722303513697,0.14993417,66538.0,66537.0,0.76810604]
[1722303515870,0.13878348,66538.0,66537.0,1.00857304]
[1722303516069,0.13878348,66538.0,66537.0,0.76810604]
[1722303516271,0.13878348,66538.0,66537.0,1.00857304]
[1722303516470,0.099918,66538.0,66537.0,1.00857304]
[1722303516676,0.16235146,66538.0,66537.0,1.00857304]
[1722303517072,0.0870043,66538.0,66537.0,1.09981663]
[1722303517258,0.02457084,66538.0,66537.0,1.09981663]
[1722303517460,0.001,66538.0,66537.0,1.09981663]
[1722303518057,0.07534716,66545.0,66537.0,1.09981663]
[1722303518058,0.07534716,66545.0,66544.0,0.841547]
[1722303518308,0.13776998,66545.0,66544.0,1.08387916]
[1722303518507,0.13776998,66545.0,66544.0,0.99218004]
[1722303519698,0.07534716,66545.0,66544.0,0.99218004]
[1722303519841,0.13776991,66545.0,66544.0,0.99218004]
[1722303520482,0.13776991,66545.0,66544.0,1.46481405]
[1722303520687,0.07534716,66545.0,66544.0,1.46781405]
[1722303520903,0.09891394,66545.0,66544.0,1.46481405]
[1722303521109,0.07534716,66545.0,66544.0,1.46481405]
[1722303521307,0.07534716,66545.0,66544.0,1.47681405]
[1722303521874,0.07534716,66545.0,66544.0,1.23637205]
[1722303522682,0.07534716,66545.0,66544.0,1.2353677]
[1722303523909,0.09891353,66545.0,66544.0,1.2353677]
[1722303524515,0.09891353,66545.0,66544.0,1.14438004]
[1722303525581,0.07534716,66545.0,66544.0,1.14438004]
[1722303526613,0.07534716,66545.0,66544.0,1.15551629]
[1722303527303,0.07534716,66545.0,66544.0,1.09521629]
[1722303527469,0.07534716,66545.0,66544.0,0.77487429]
[1722303527671,0.07534716,66545.0,66544.0,0.012]
[1722303527672,0.25928643,66545.0,66544.0,0.012]
[1722303527872,0.16777093,66545.0,66544.0,0.012]
[1722303528073,0.60352814,66545.0,66544.0,0.012]
[1722303528512,0.71751889,66545.0,66544.0,0.012]
[1722303528683,0.74108806,66545.0,66544.0,0.012]
[1722303528896,0.56670863,66545.0,66544.0,0.132221]
[1722303529191,0.82053408,66545.0,66544.0,0.012]
[1722303529503,0.03,66540.0,66539.0,0.120229]
[1722303529703,0.42586692,66540.0,66539.0,0.120229]
[1722303529884,0.43711268,66540.0,66539.0,0.120229]
[1722303530444,0.43711693,66540.0,66539.0,0.120229]
[1722303531506,0.43711693,66540.0,66539.0,0.124229]
[1722303531915,0.04124576,66540.0,66539.0,0.124229]
[1722303532133,0.37468331,66540.0,66539.0,0.124229]
[1722303532427,0.43711806,66540.0,66539.0,0.124229]
[1722303532628,0.37468332,66540.0,66539.0,0.124229]
[1722303532798,0.43711807,66540.0,66539.0,0.124229]
[1722303533241,0.46068809,66540.0,66539.0,0.124229]
[1722303533816,0.5522639,66540.0,66539.0,0.004]
[1722303534022,0.5522639,66540.0,66539.0,0.12423]
[1722303534227,0.51628742,66540.0,66539.0,0.004]
[1722303534429,1.04545872,66540.0,66539.0,0.004]
[1722303534597,1.04545872,66540.0,66537.0,0.00434251]
[1722303534598,0.360696,66538.0,66537.0,0.00434251]
[1722303534823,0.8455381,66538.0,66537.0,0.00434251]
[1722303534939,1.09721451,66538.0,66537.0,0.00434251]
[1722303535140,1.00424151,66538.0,66537.0,0.00434251]
[1722303535529,2.14054036,66538.0,66537.0,0.00434251]
[1722303535739,2.20479926,66538.0,66537.0,0.00434251]
[1722303536005,2.31009279,66538.0,66537.0,0.00434251]
[1722303536176,2.30110675,66538.0,66537.0,0.00434251]
[1722303536398,2.31009361,66538.0,66537.0,0.00434251]
[1722303536606,2.33009556,66538.0,66537.0,0.00434251]
[1722303536818,2.19583943,66538.0,66537.0,0.00434251]
[1722303537039,2.08961015,66538.0,66537.0,0.00434251]
[1722303537251,0.73662175,66538.0,66537.0,0.00434251]
[1722303537449,0.85685375,66538.0,66537.0,0.00434251]
[1722303537693,1.09731775,66538.0,66537.0,0.00434251]
[1722303538295,1.10631775,66538.0,66537.0,0.00534251]
[1722303538512,1.28434584,66538.0,66537.0,0.00534251]
[1722303538716,1.64812692,66538.0,66537.0,0.00534251]
[1722303539091,1.4974326,66538.0,66537.0,0.00534251]
[1722303540377,1.4884326,66538.0,66537.0,0.00434251]
[1722303540806,1.4974326,66538.0,66537.0,0.00534251]
[1722303541008,1.4974326,66538.0,66537.0,0.00434251]
[1722303541009,1.09243991,66538.0,66537.0,0.00434251]
[1722303541212,1.42597837,66538.0,66537.0,0.00434251]
[1722303541473,1.48843201,66538.0,66537.0,0.00434251]
[1722303542438,1.12091119,66538.0,66537.0,0.00434251]
[1722303542640,0.88044719,66538.0,66537.0,0.00434251]
[1722303542996,0.76021519,66538.0,66537.0,0.00434251]
[1722303543204,0.88044719,66538.0,66537.0,0.00434251]
[1722303543404,0.73663897,66538.0,66537.0,0.00434251]
[1722303543631,0.26294687,66538.0,66537.0,0.24480951]
[1722303543833,0.11066514,66538.0,66537.0,0.36504251]
[1722303544028,0.41718477,66538.0,66537.0,0.60550951]
[1722303544262,0.08366294,66538.0,66537.0,0.60550951]
[1722303544665,0.07366294,66538.0,66537.0,0.60550951]
[1722303544854,0.01121241,66538.0,66537.0,1.05880955]
[1722303545034,0.01121241,66538.0,66537.0,1.13380955]
[1722303545245,0.0447358,66541.0,66540.0,0.60114]
[1722303545450,0.0447358,66541.0,66540.0,0.99222904]
[1722303545651,0.01102145,66541.0,66540.0,0.99222904]
[1722303545850,0.0447358,66543.0,66542.0,0.841571]
[1722303546133,0.0447358,66543.0,66542.0,0.99220404]
[1722303546461,0.07534716,66545.0,66544.0,0.841547]
[1722303546689,0.07534716,66545.0,66544.0,0.99218004]
[1722303546851,0.09891536,66545.0,66544.0,0.99218004]
[1722303547257,0.11004972,66545.0,66544.0,0.99218004]